bitfinex/quotes_BTCUSD_20241022
["timestamp","ask_amount","ask_price","bid_price","bid_amount"]
[1729589842431,0.45471465,66920.0,66910.0,0.22265268]
[1729589842655,0.46871465,66920.0,66910.0,0.22265268]
[1729589843780,0.31739115,66920.0,66910.0,0.22265268]
[1729589843995,0.56395766,66920.0,66910.0,0.22265268]
[1729589844225,0.64995766,66920.0,66911.0,0.22265268]
[1729589844454,0.75945766,66920.0,66911.0,0.22265268]
[1729589844682,0.77345766,66920.0,66911.0,0.22265268]
[1729589845109,0.75945766,66920.0,66911.0,0.22265268]
[1729589845318,0.77345766,66920.0,66911.0,0.22265268]
[1729589848274,0.50939115,66920.0,66911.0,0.22265268]
[1729589848484,0.43139115,66920.0,66911.0,0.22265268]
[1729589849589,0.42639115,66920.0,66911.0,0.22265268]
[1729589849822,0.43139115,66920.0,66911.0,0.22265268]
[1729589850916,0.41739115,66920.0,66911.0,0.22265268]
[1729589851153,0.40339115,66920.0,66911.0,0.22265268]
[1729589851388,0.41739115,66920.0,66911.0,0.22265268]
[1729589851605,0.43139115,66920.0,66911.0,0.22265268]
[1729589851830,0.40339115,66920.0,66911.0,0.22265268]
[1729589852071,0.41739115,66920.0,66911.0,0.22265268]
[1729589852300,0.43139115,66920.0,66911.0,0.22265268]
[1729589852524,0.177432,66920.0,66911.0,0.22265268]
[1729589852961,0.177432,66920.0,66913.0,0.005]
[1729589853416,0.163432,66920.0,66913.0,0.005]
[1729589853658,0.163432,66920.0,66912.0,0.22265268]
[1729589853885,0.177432,66920.0,66912.0,0.22265268]
[1729589854327,0.31239115,66920.0,66912.0,0.22265268]
[1729589854560,0.32439115,66920.0,66912.0,0.22265268]
[1729589855002,0.31239115,66920.0,66912.0,0.22265268]
[1729589856411,0.32639115,66920.0,66912.0,0.22265268]
[1729589856856,0.31239115,66920.0,66912.0,0.22265268]
[1729589857330,0.177432,66920.0,66912.0,0.22265268]
[1729589857795,0.163432,66920.0,66912.0,0.22265268]
[1729589858045,0.177432,66920.0,66913.0,0.0954]
[1729589858716,0.177432,66920.0,66909.0,0.22265268]
[1729589859389,0.177432,66920.0,66908.0,0.082]
[1729589859390,0.44971465,66920.0,66910.0,0.22265268]
[1729589859651,0.53741465,66920.0,66910.0,0.22265268]
[1729589859883,0.64941465,66920.0,66910.0,0.22265268]
[1729589860328,0.63741465,66920.0,66910.0,0.22265268]
[1729589860973,0.64841465,66920.0,66910.0,0.22265268]
[1729589861242,0.65041465,66920.0,66910.0,0.22265268]
[1729589861473,0.65041465,66920.0,66911.0,0.22265268]
[1729589861956,0.68165766,66920.0,66911.0,0.22265268]
[1729589862455,0.67065766,66920.0,66911.0,0.22265268]
[1729589862646,0.68465766,66920.0,66911.0,0.22265268]
[1729589863342,0.67065766,66920.0,66911.0,0.22265268]
[1729589863567,0.65341465,66920.0,66911.0,0.22265268]
[1729589865594,0.63941465,66920.0,66911.0,0.22265268]
[1729589865817,0.79671465,66920.0,66911.0,0.22265268]
[1729589866049,0.65141465,66920.0,66911.0,0.22265268]
[1729589866581,0.65141465,66920.0,66907.0,0.000825]
[1729589866582,0.63741465,66920.0,66907.0,0.000825]
[1729589866780,0.65341465,66920.0,66912.0,0.22265268]
[1729589867932,0.65341465,66920.0,66907.0,0.000825]
[1729589867933,0.154458,66908.0,66907.0,0.000825]
[1729589868159,0.44074065,66908.0,66907.0,0.000825]
[1729589868378,0.44274065,66908.0,66907.0,0.01509492]
[1729589868893,0.44074065,66908.0,66907.0,0.01509492]
[1729589869368,0.45374065,66908.0,66907.0,0.01509492]
[1729589869581,0.45174065,66908.0,66907.0,0.01509492]
[1729589870523,0.54274065,66908.0,66907.0,0.01509492]
[1729589870774,0.63514065,66908.0,66907.0,0.01509492]
[1729589871434,0.77246415,66908.0,66907.0,0.01509492]
[1729589871659,0.63514065,66908.0,66907.0,0.01509492]
[1729589872344,0.63314065,66908.0,66907.0,0.01509492]
[1729589872578,0.62114065,66908.0,66907.0,0.01509492]
[1729589872813,0.63514065,66908.0,66907.0,0.01509492]
[1729589873494,0.67950457,66908.0,66907.0,0.01509492]
[1729589873969,0.67750457,66908.0,66907.0,0.01509492]
[1729589874191,0.68317335,66908.0,66907.0,0.01509492]
[1729589874415,0.70735531,66908.0,66907.0,0.01509492]
[1729589874636,0.91615926,66908.0,66907.0,0.01509492]
[1729589874861,0.80524946,66908.0,66907.0,0.01509492]
[1729589876071,0.66422674,66908.0,66907.0,0.01509492]
[1729589876336,0.82875387,66908.0,66907.0,0.01509492]
[1729589876789,0.96246481,66908.0,66907.0,0.01509492]
[1729589877034,0.96607737,66908.0,66907.0,0.01509492]
[1729589877259,0.82875387,66908.0,66907.0,0.01509492]
[1729589877488,0.96607737,66908.0,66907.0,0.01509492]
[1729589877716,0.156465,66905.0,66904.0,0.0075]
[1729589877907,0.84459828,66905.0,66904.0,0.0075]
[1729589879555,0.85859828,66905.0,66904.0,0.0075]
[1729589880057,0.84459828,66905.0,66904.0,0.0075]
[1729589880756,0.84452639,66905.0,66904.0,0.0075]
[1729589881503,0.85852639,66905.0,66904.0,0.0075]
[1729589881950,0.84452639,66905.0,66904.0,0.0075]
[1729589882176,0.71920289,66905.0,66904.0,0.0075]
[1729589882872,0.99009481,66905.0,66904.0,0.0075]
[1729589883104,0.3918025,66899.0,66898.0,0.000845]
[1729589883359,0.70521689,66899.0,66898.0,0.000845]
[1729589884108,0.70506171,66899.0,66898.0,0.000845]
[1729589884331,0.70706171,66899.0,66898.0,0.000845]
[1729589885014,0.72106171,66899.0,66898.0,0.000845]
[1729589885808,0.56773821,66899.0,66898.0,0.000845]
[1729589886019,0.29843815,66899.0,66898.0,0.000845]
[1729589886252,0.34292255,66899.0,66898.0,0.000845]
[1729589886484,0.163479,66899.0,66898.0,0.000845]
[1729589887672,0.149479,66899.0,66898.0,0.000845]
[1729589887945,0.163479,66899.0,66898.0,0.000845]
[1729589888446,0.149479,66899.0,66898.0,0.000845]
[1729589888921,0.155479,66899.0,66898.0,0.000845]
[1729589890077,0.2928025,66899.0,66898.0,0.000845]
[1729589890310,0.44676165,66899.0,66898.0,0.000845]
[1729589890782,0.61087212,66899.0,66898.0,0.000845]
[1729589891023,0.71287212,66899.0,66898.0,0.000845]
[1729589891258,0.70487212,66899.0,66898.0,0.000845]
[1729589891505,0.71487212,66899.0,66898.0,0.000845]
[1729589891769,0.57754862,66899.0,66898.0,0.000845]
[1729589892220,0.68865642,66899.0,66898.0,0.000845]
[1729589892438,0.56754862,66899.0,66898.0,0.000845]
[1729589892891,0.58154862,66899.0,66898.0,0.000845]
[1729589893123,0.5814945,66899.0,66898.0,0.000845]
[1729589893350,0.69260144,66899.0,66898.0,0.000845]
[1729589893599,0.5834945,66899.0,66898.0,0.000845]
[1729589893836,0.5814945,66899.0,66898.0,0.000845]
[1729589894317,0.5674945,66899.0,66898.0,0.000845]
[1729589894537,0.5814945,66899.0,66898.0,0.000845]
[1729589894754,0.2918175,66892.0,66891.0,0.22265268]
[1729589894970,0.54077665,66892.0,66891.0,0.22265268]
[1729589895200,0.005,66885.0,66881.0,0.30405268]
[1729589895425,0.149517,66882.0,66881.0,0.30405268]
[1729589895889,0.149517,66882.0,66881.0,0.0814]
[1729589897554,0.149517,66882.0,66881.0,0.1801]
[1729589898001,0.156517,66882.0,66881.0,0.1801]
[1729589898702,0.156517,66882.0,66881.0,0.0814]
[1729589898933,0.156517,66882.0,66876.0,0.000825]
[1729589898934,0.149528,66877.0,66876.0,0.081125]
[1729589899685,0.2868515,66877.0,66876.0,0.000825]
[1729589899905,0.44081065,66877.0,66876.0,0.000825]
[1729589900131,0.30348715,66877.0,66876.0,0.000825]
[1729589900641,0.44081065,66877.0,66876.0,0.000825]
[1729589900867,0.44281065,66877.0,66876.0,0.000825]
[1729589901085,0.156528,66877.0,66876.0,0.000825]
[1729589901345,0.154528,66877.0,66876.0,0.000825]
[1729589901778,0.164528,66877.0,66876.0,0.000825]
[1729589902002,0.31348715,66877.0,66876.0,0.000825]
[1729589903635,0.32548715,66877.0,66876.0,0.000825]
[1729589904311,0.32048715,66877.0,66876.0,0.000825]
[1729589904771,0.171528,66877.0,66876.0,0.000825]
[1729589905223,0.161528,66877.0,66876.0,0.000825]
[1729589905460,0.31748715,66877.0,66876.0,0.000825]
[1729589905701,0.33148715,66877.0,66876.0,0.000825]
[1729589905924,0.31748715,66877.0,66876.0,0.000825]
[1729589906385,0.32948715,66877.0,66876.0,0.000825]
[1729589906607,0.30348715,66877.0,66876.0,0.000825]
[1729589907129,0.31748715,66877.0,66876.0,0.000825]
[1729589907367,0.31348715,66877.0,66876.0,0.000825]
[1729589907605,0.164528,66877.0,66876.0,0.000825]
[1729589907835,0.149528,66877.0,66876.0,0.078025]
[1729589908315,0.163528,66877.0,66876.0,0.000825]
[1729589908989,0.177528,66877.0,66876.0,0.000825]
[1729589909451,0.163528,66877.0,66876.0,0.000825]
[1729589910160,0.176528,66877.0,66876.0,0.000825]
[1729589910407,0.46781065,66877.0,66876.0,0.000825]
[1729589911330,0.51223853,66877.0,66876.0,0.000825]
[1729589911547,0.46781065,66877.0,66876.0,0.000825]
[1729589912439,0.43048715,66877.0,66876.0,0.000825]
[1729589912692,0.56781065,66877.0,66876.0,0.000825]
[1729589913905,0.43048715,66877.0,66876.0,0.000825]
[1729589914133,0.56781065,66877.0,66876.0,0.000825]
[1729589916715,0.61228568,66877.0,66876.0,0.000825]
[1729589917858,0.22100303,66877.0,66876.0,0.000825]
[1729589918094,0.176528,66877.0,66876.0,0.000825]
[1729589918314,0.176528,66877.0,66876.0,0.081025]
[1729589918995,0.176528,66877.0,66876.0,0.180725]
[1729589919914,0.176528,66877.0,66871.0,0.06959409]
[1729589919915,0.149539,66872.0,66871.0,0.06959409]
[1729589920380,0.149543,66870.0,66869.0,0.000825]
[1729589922680,0.47940215,66870.0,66869.0,0.000825]
[1729589923131,0.64861312,66870.0,66869.0,0.000825]
[1729589923356,0.73758251,66870.0,66869.0,0.000825]
[1729589923608,0.73558251,66870.0,66869.0,0.000825]
[1729589923833,0.73258251,66870.0,66869.0,0.000825]
[1729589924057,0.74258251,66870.0,66869.0,0.000825]
[1729589924286,0.96523519,66870.0,66869.0,0.000825]
[1729589924518,0.66761316,66870.0,66869.0,0.000825]
[1729589925181,0.79493666,66870.0,66869.0,0.000825]
[1729589925644,0.79493666,66870.0,66866.0,0.97539457]
[1729589925645,0.531197,66867.0,66866.0,0.97539457]
[1729589925862,0.70504366,66867.0,66866.0,0.97539457]
[1729589926084,0.83838333,66867.0,66866.0,0.97539457]
[1729589926310,1.24171984,66867.0,66866.0,0.34057551]
[1729589926532,1.24171984,66867.0,66866.0,0.30614129]
[1729589926533,1.16445117,66867.0,66866.0,0.30614129]
[1729589926785,1.13218224,66867.0,66866.0,0.27623029]
[1729589927014,1.03506716,66867.0,66866.0,0.15658629]
[1729589927252,1.06733609,66867.0,66866.0,0.15658629]
[1729589927484,1.08133609,66867.0,66866.0,0.07592482]
[1729589927710,0.256552,66866.0,66865.0,8.1e-07]
[1729589927936,0.68249109,66866.0,66865.0,8.1e-07]
[1729589928163,0.65022216,66866.0,66865.0,8.1e-07]
[1729589928380,0.68249109,66866.0,66865.0,8.1e-07]
[1729589928835,0.700022,66856.0,66854.0,0.000846]
[1729589929081,0.700022,66856.0,66847.0,0.0495207]
[1729589929082,0.156593,66848.0,66847.0,0.0495207]
[1729589929315,0.51447734,66848.0,66847.0,0.0495207]
[1729589929567,0.40355215,66848.0,66847.0,0.0495207]
[1729589930010,0.54087565,66848.0,66847.0,0.0495207]
[1729589930248,0.76352833,66848.0,66847.0,0.0495207]
[1729589930471,0.57603625,66848.0,66847.0,0.0495207]
[1729589931835,0.59003625,66848.0,66847.0,0.0495207]
[1729589932527,0.56887565,66848.0,66847.0,0.0495207]
[1729589932750,0.55487565,66848.0,66847.0,0.0495207]
[1729589932968,0.54087565,66848.0,66847.0,0.0495207]
[1729589933213,0.56887565,66848.0,66847.0,0.0495207]
[1729589933651,0.55487565,66848.0,66847.0,0.0495207]
[1729589933896,0.56887565,66848.0,66847.0,0.0495207]
[1729589934123,0.59003625,66848.0,66847.0,0.0495207]
[1729589934373,0.55487565,66848.0,66847.0,0.0495207]
[1729589934799,0.56887565,66848.0,66847.0,0.0495207]
[1729589935270,0.55487565,66848.0,66847.0,0.0495207]
[1729589936649,0.57087565,66848.0,66847.0,0.0495207]
[1729589936865,0.55687565,66848.0,66847.0,0.0495207]
[1729589937088,0.57087565,66848.0,66847.0,0.0495207]
[1729589937601,0.55487565,66848.0,66847.0,0.0495207]
[1729589937810,0.43155215,66848.0,66847.0,0.0495207]
[1729589938503,0.41755215,66848.0,66847.0,0.0495207]
[1729589939187,0.43155215,66848.0,66847.0,0.0495207]
[1729589939406,0.41755215,66848.0,66847.0,0.0495207]
[1729589939884,0.43155215,66848.0,66847.0,0.0495207]
[1729589940375,0.43155215,66848.0,66847.0,0.0503467]
[1729589940835,0.43155215,66848.0,66847.0,0.2674702]
[1729589940836,0.177593,66848.0,66847.0,0.2674702]
[1729589941563,0.177593,66848.0,66847.0,0.2954702]
[1729589941564,0.014,66848.0,66847.0,0.2954702]
[1729589941795,0.001652,66870.0,66847.0,0.2954702]
[1729589941796,0.299123,66862.0,66854.0,0.005]
[1729589942078,0.52176968,66864.0,66854.0,0.005]
[1729589942079,0.149564,66861.0,66860.0,0.1373235]
[1729589942308,0.67072883,66864.0,66855.0,0.0962]
[1729589942309,0.149574,66857.0,66855.0,0.0962]
[1729589942546,0.149575,66856.0,66855.0,0.0962]
[1729589942802,0.149575,66856.0,66847.0,0.1351467]
[1729589942803,0.008,66848.0,66847.0,0.1351467]
[1729589943048,0.013,66848.0,66847.0,0.16796132]
[1729589943308,0.008,66848.0,66847.0,0.16796132]
[1729589943775,0.008,66848.0,66847.0,0.45487982]
[1729589944278,0.149583,66853.0,66848.0,0.03281462]
[1729589944532,0.14958,66854.0,66850.0,0.005]
[1729589944780,0.22265268,66855.0,66848.0,0.005]
[1729589944781,0.299163,66853.0,66848.0,0.005]
[1729589945005,0.149584,66852.0,66848.0,0.005]
[1729589945258,0.149588,66850.0,66848.0,0.005]
[1729589945488,0.22265268,66859.0,66848.0,0.005]
[1729589945716,0.299163,66853.0,66848.0,0.005]
[1729589945962,0.14895915,66858.0,66848.0,0.005]
[1729589946191,0.149579,66855.0,66849.0,0.14959]
[1729589946423,0.299123,66863.0,66848.0,0.005]
[1729589946424,0.005,66863.0,66852.0,0.1373235]
[1729589946658,0.29915,66856.0,66852.0,0.1373235]
[1729589946912,0.01,66853.0,66852.0,0.1373235]
[1729589947373,0.007,66852.0,66850.0,0.005]
[1729589947822,0.149586,66851.0,66850.0,0.005]
[1729589948063,0.149588,66850.0,66849.0,0.005]
[1729589948278,0.149593,66848.0,66847.0,0.1301467]
[1729589949285,0.299165,66853.0,66847.0,0.1351467]
[1729589949525,0.008,66851.0,66848.0,0.1373235]
[1729589949990,0.149584,66852.0,66848.0,0.1373235]
[1729589950228,0.149588,66851.0,66848.0,0.1373235]
[1729589950488,0.299165,66853.0,66848.0,0.1373235]
[1729589950771,0.02343094,66856.0,66852.0,0.1373235]
[1729589951012,0.02343094,66856.0,66854.0,0.005]
[1729589951242,0.02343094,66856.0,66855.0,0.028]
[1729589951463,0.02343094,66856.0,66855.0,0.1988]
[1729589951963,0.22265268,66867.0,66865.0,0.005]
[1729589952198,0.22265268,66867.0,66863.0,0.00981462]
[1729589952199,0.001652,66870.0,66869.0,0.177546]
[1729589952467,0.001652,66870.0,66869.0,0.3148695]
[1729589952726,0.001652,66870.0,66868.0,0.18551462]
[1729589952991,0.001652,66870.0,66868.0,0.1757]
[1729589952992,0.149546,66869.0,66868.0,0.1757]
[1729589953230,0.001652,66870.0,66868.0,0.1757]
[1729589953231,0.001652,66870.0,66868.0,0.1807]
[1729589953741,0.001652,66870.0,66869.0,0.028]
[1729589953962,0.001652,66870.0,66869.0,0.177546]
[1729589954677,0.009652,66870.0,66869.0,0.177546]
[1729589955117,0.006652,66870.0,66869.0,0.177546]
[1729589955633,0.010652,66870.0,66869.0,0.177546]
[1729589956570,0.010652,66870.0,66869.0,0.028]
[1729589957326,0.010652,66870.0,66869.0,0.023]
[1729589957577,0.160195,66870.0,66869.0,0.023]
[1729589957803,0.160195,66870.0,66869.0,0.028]
[1729589958043,0.149546,66869.0,66868.0,0.18551462]
[1729589958299,0.010652,66870.0,66863.0,0.0878]
[1729589958527,0.299092,66869.0,66868.0,0.0104239]
[1729589958783,0.448638,66869.0,66868.0,0.0104239]
[1729589959258,0.448638,66869.0,66868.0,0.1527474]
[1729589959259,0.149546,66869.0,66868.0,0.1527474]
[1729589959528,0.004,66869.0,66868.0,0.1527474]
[1729589959768,0.004,66869.0,66868.0,0.3022954]
[1729589960205,0.004,66869.0,66868.0,0.0104239]
[1729589960206,0.153546,66869.0,66868.0,0.0104239]
[1729589960729,0.151546,66869.0,66868.0,0.0104239]
[1729589961209,0.162546,66869.0,66868.0,0.0104239]
[1729589961427,0.149546,66869.0,66868.0,0.0104239]
[1729589961651,0.176546,66869.0,66868.0,0.0104239]
[1729589962139,0.149546,66869.0,66868.0,0.0104239]
[1729589962372,0.028,66869.0,66868.0,0.0104239]
[1729589962611,0.014,66869.0,66868.0,0.0104239]
[1729589963821,0.001652,66870.0,66868.0,0.0104239]
[1729589964038,0.163546,66869.0,66868.0,0.0104239]
[1729589964375,0.177546,66869.0,66868.0,0.0104239]
[1729589964586,0.149546,66869.0,66868.0,0.0104239]
[1729589964984,0.154546,66869.0,66868.0,0.0104239]
[1729589965227,0.160546,66869.0,66868.0,0.0104239]
[1729589965419,0.149546,66869.0,66868.0,0.0104239]
[1729589965622,0.30850515,66869.0,66868.0,0.0104239]
[1729589965829,0.44582865,66869.0,66868.0,0.0104239]
[1729589966313,0.55082865,66869.0,66868.0,0.0104239]
[1729589966725,0.55882865,66869.0,66868.0,0.0104239]
[1729589967109,0.54882865,66869.0,66868.0,0.0104239]
[1729589967265,0.56282865,66869.0,66868.0,0.0104239]
[1729589967482,0.54882865,66869.0,66868.0,0.0104239]
[1729589967898,0.55482865,66869.0,66868.0,0.0104239]
[1729589968164,0.56882865,66869.0,66868.0,0.0104239]
[1729589968550,0.55682865,66869.0,66868.0,0.0104239]
[1729589968804,0.60934577,66869.0,66868.0,0.0104239]
[1729589969027,0.60934577,66869.0,66859.0,0.22265268]
[1729589969028,0.149566,66860.0,66859.0,0.22265268]
[1729589969267,0.29852515,66860.0,66859.0,0.22265268]
[1729589969512,0.14959,66849.0,66848.0,0.22347868]
[1729589970006,0.14959,66849.0,66848.0,0.000826]
[1729589970955,0.15259,66849.0,66848.0,0.000826]
[1729589971184,0.15959,66849.0,66848.0,0.000826]
[1729589971411,0.15259,66849.0,66848.0,0.000826]
[1729589971640,0.15459,66849.0,66848.0,0.000826]
[1729589971871,0.15859,66849.0,66848.0,0.000826]
[1729589972121,0.15359,66849.0,66848.0,0.000826]
[1729589973283,0.15559,66849.0,66848.0,0.000826]
[1729589973531,0.16659,66849.0,66848.0,0.000826]
[1729589973754,0.011,66849.0,66848.0,0.000826]
[1729589973978,0.16259,66849.0,66848.0,0.000826]
[1729589974203,0.024,66849.0,66848.0,0.000826]
[1729589974475,0.17359,66849.0,66848.0,0.000826]
[1729589974698,0.16259,66849.0,66848.0,0.000826]
[1729589975173,0.15859,66849.0,66848.0,0.000826]
[1729589975894,0.009,66849.0,66848.0,0.000826]
[1729589976143,0.02288453,66849.0,66848.0,0.000826]
[1729589976378,0.14959,66849.0,66848.0,0.000826]
[1729589976623,0.17059,66849.0,66848.0,0.000826]
[1729589977117,0.16059,66849.0,66848.0,0.000826]
[1729589977348,0.16959,66849.0,66848.0,0.000826]
[1729589979928,0.64037265,66849.0,66848.0,0.000826]
[1729589980170,0.70693575,66849.0,66848.0,0.000826]
[1729589980439,0.91515458,66849.0,66848.0,0.000826]
[1729589980687,0.254593,66848.0,66847.0,0.05006271]
[1729589980902,0.56739557,66848.0,66847.0,0.05006271]
[1729589981135,0.67833324,66848.0,66847.0,0.05006271]
[1729589981394,0.56739557,66848.0,66847.0,0.05006271]
[1729589981637,0.58127212,66848.0,66847.0,0.05006271]
[1729589982394,0.58327212,66848.0,66847.0,0.05006271]
[1729589982840,0.59727212,66848.0,66847.0,0.05006271]
[1729589983559,0.58127212,66848.0,66847.0,0.05006271]
[1729589983800,0.60927212,66848.0,66847.0,0.05006271]
[1729589984035,0.59527212,66848.0,66847.0,0.05006271]
[1729589984303,0.58127212,66848.0,66847.0,0.05006271]
[1729589984596,0.6092476,66848.0,66847.0,0.05006271]
[1729589984846,0.70614796,66848.0,66847.0,0.05006271]
[1729589985079,0.6839685,66848.0,66847.0,0.05006271]
[1729589985309,0.5952476,66848.0,66847.0,0.05006271]
[1729589985550,0.17681118,66848.0,66847.0,0.05006271]
[1729589985770,0.16295915,66848.0,66847.0,0.05006271]
[1729589986010,0.29855215,66848.0,66847.0,0.05006271]
[1729589986244,0.31240418,66848.0,66847.0,0.05006271]
[1729589986470,0.34040418,66848.0,66847.0,0.05006271]
[1729589986935,0.16281118,66848.0,66847.0,0.05006271]
[1729589987177,0.32655215,66848.0,66847.0,0.05006271]
[1729589987415,0.32640418,66848.0,66847.0,0.05006271]
[1729589987649,0.31240418,66848.0,66847.0,0.05006271]
[1729589987893,0.32640418,66848.0,66847.0,0.05006271]
[1729589988171,0.34040418,66848.0,66847.0,0.05006271]
[1729589989079,0.32640418,66848.0,66847.0,0.05006271]
[1729589989549,0.34040418,66848.0,66847.0,0.05006271]
[1729589990106,0.32640418,66848.0,66847.0,0.05006271]
[1729589991014,0.31240418,66848.0,66847.0,0.05006271]
[1729589991241,0.32640418,66848.0,66847.0,0.05006271]
[1729589991685,0.31242551,66848.0,66847.0,0.05006271]
[1729589991935,0.32642551,66848.0,66847.0,0.05006271]
[1729589992379,0.34042551,66848.0,66847.0,0.05006271]
[1729589992565,0.32642551,66848.0,66847.0,0.05006271]
[1729589992777,0.34042551,66848.0,66847.0,0.05006271]
[1729589992934,0.32642551,66848.0,66847.0,0.05006271]
[1729589993157,0.31242551,66848.0,66847.0,0.05006271]
[1729589993357,0.34042551,66848.0,66847.0,0.05006271]
[1729589993965,0.32642551,66848.0,66847.0,0.05006271]
[1729589994740,0.31242551,66848.0,66847.0,0.05006271]
[1729589995178,0.31242551,66848.0,66847.0,0.21038621]
[1729589995179,0.02787336,66848.0,66847.0,0.21038621]
[1729589995371,0.02787336,66848.0,66847.0,0.43858121]
[1729589995372,0.04187336,66848.0,66847.0,0.43858121]
[1729589995625,0.028,66848.0,66847.0,0.43858121]
[1729589995843,0.014,66848.0,66847.0,0.44358121]
[1729589996053,0.028,66848.0,66847.0,0.44358121]
[1729589996298,0.028,66848.0,66847.0,0.30625771]
[1729589996511,0.22265268,66854.0,66850.0,0.005]
[1729589996726,0.14895915,66853.0,66850.0,0.005]
[1729589997172,0.29854115,66853.0,66850.0,0.005]
[1729589997372,0.149589,66850.0,66849.0,0.005]
[1729589997622,0.16348593,66850.0,66849.0,0.005]
[1729589998054,0.01389693,66850.0,66849.0,0.005]
[1729589998705,0.14895915,66853.0,66850.0,0.005]
[1729589998931,0.29854215,66853.0,66850.0,0.005]
[1729589999373,0.31054215,66853.0,66850.0,0.005]
[1729590000250,0.149587,66851.0,66848.0,0.028]
[1729590000463,0.149588,66850.0,66848.0,0.028]
[1729590000687,0.01390156,66849.0,66848.0,0.028]
[1729590000900,0.01390156,66849.0,66847.0,0.05006271]
[1729590000901,0.16286071,66849.0,66847.0,0.05006271]
[1729590001129,0.31245371,66848.0,66847.0,0.05006271]
[1729590001854,0.01390156,66848.0,66847.0,0.39595771]
[1729590002070,0.012,66851.0,66850.0,0.471765]
[1729590002304,0.02590211,66851.0,66850.0,0.471765]
[1729590002524,0.03590211,66851.0,66850.0,0.471765]
[1729590002757,0.022,66851.0,66850.0,0.48657962]
[1729590002978,0.22265268,66858.0,66850.0,0.33699162]
[1729590003187,0.22265268,66858.0,66857.0,0.023]
[1729590003659,0.22265268,66858.0,66856.0,0.005]
[1729590003660,0.16285893,66858.0,66853.0,0.005]
[1729590003883,0.01389978,66857.0,66856.0,0.005]
[1729590004118,0.149575,66856.0,66855.0,0.023]
[1729590004333,0.149582,66853.0,66847.0,0.37295771]
[1729590004553,0.22965268,66858.0,66847.0,0.05006271]
[1729590004554,0.30018243,66852.0,66847.0,0.05006271]
[1729590004787,0.149593,66848.0,66847.0,0.05006271]
[1729590005011,0.31245193,66848.0,66847.0,0.05006271]
[1729590005314,0.31244926,66848.0,66847.0,0.05006271]
[1729590006186,0.32144926,66848.0,66847.0,0.05006271]
[1729590006867,0.32844926,66848.0,66847.0,0.05006271]
[1729590007850,0.65447276,66848.0,66847.0,0.05006271]
[1729590008063,0.8164214,66848.0,66847.0,0.05006271]
[1729590008736,0.254606,66842.0,66841.0,0.05999999]
[1729590008966,0.6214116,66842.0,66841.0,0.05999999]
[1729590009661,0.6164116,66842.0,66841.0,0.05999999]
[1729590009879,0.54978576,66842.0,66841.0,0.05999999]
[1729590010095,0.61642379,66842.0,66841.0,0.05999999]
[1729590010328,0.54978576,66842.0,66841.0,0.05999999]
[1729590010780,0.71381561,66842.0,66841.0,0.05999999]
[1729590010993,0.80264924,66842.0,66841.0,0.06082599]
[1729590011253,0.80268586,66842.0,66841.0,0.06082599]
[1729590011705,0.71381561,66842.0,66841.0,0.06082599]
[1729590012154,0.81670135,66842.0,66841.0,0.06082599]
[1729590012372,0.81669877,66842.0,66841.0,0.06082599]
[1729590012588,0.67942824,66842.0,66841.0,0.06082599]
[1729590013069,0.66542824,66842.0,66841.0,0.06082599]
[1729590013286,0.69342824,66842.0,66841.0,0.06082599]
[1729590013510,0.74685682,66842.0,66841.0,0.06082599]
[1729590013737,0.73285682,66842.0,66841.0,0.06082599]
[1729590013984,0.77029739,66842.0,66841.0,0.06082599]
[1729590014507,1.08972089,66842.0,66841.0,0.06082599]
[1729590014729,1.08373977,66842.0,66841.0,0.06082599]
[1729590014938,0.95039739,66842.0,66841.0,0.06082599]
[1729590015162,0.92239739,66842.0,66841.0,0.06082599]
[1729590015413,0.93639739,66842.0,66841.0,0.06082599]
[1729590015694,0.95039739,66842.0,66841.0,0.06082599]
[1729590015913,0.93639739,66842.0,66841.0,0.06082599]
[1729590016166,0.83789702,66842.0,66841.0,0.06082599]
[1729590016379,0.63297352,66842.0,66841.0,0.06082599]
[1729590016595,0.77029702,66842.0,66841.0,0.06082599]
[1729590017077,0.74885645,66842.0,66841.0,0.06082599]
[1729590017533,0.74685645,66842.0,66841.0,0.06082599]
[1729590017755,0.74885645,66842.0,66841.0,0.06082599]
[1729590018187,0.74885645,66842.0,66841.0,0.06065681]
[1729590018851,0.149628,66832.0,66831.0,0.000846]
[1729590019063,0.31248131,66832.0,66831.0,0.000846]
[1729590019710,0.29858715,66832.0,66831.0,0.000846]
[1729590019919,0.31247325,66832.0,66831.0,0.000846]
[1729590020150,0.19084525,66832.0,66831.0,0.22349868]
[1729590020411,0.0418861,66832.0,66831.0,0.3376695]
[1729590020719,0.0418861,66832.0,66831.0,0.349977]
[1729590020820,0.0418861,66832.0,66831.0,0.200346]
[1729590021049,0.028,66832.0,66831.0,0.35979162]
[1729590021531,0.014,66832.0,66831.0,0.35979162]
[1729590021794,0.014,66832.0,66831.0,0.21016062]
[1729590021795,0.028,66832.0,66831.0,0.21016062]
[1729590022032,0.299224,66840.0,66837.0,0.005]
[1729590022033,0.149613,66839.0,66837.0,0.005]
[1729590022278,0.0138813,66838.0,66837.0,0.028]
[1729590022528,0.0138813,66838.0,66837.0,0.005]
[1729590022529,0.1634963,66838.0,66837.0,0.005]
[1729590022761,0.0138813,66838.0,66837.0,0.028]
[1729590023244,0.149615,66838.0,66837.0,0.028]
[1729590023482,0.16349649,66838.0,66837.0,0.028]
[1729590023715,0.01388149,66838.0,66837.0,0.028]
[1729590024425,0.01388149,66838.0,66837.0,0.005]
[1729590024426,0.16349649,66838.0,66837.0,0.005]
[1729590024662,0.16349649,66838.0,66837.0,0.028]
[1729590024931,0.01388149,66838.0,66837.0,0.028]
[1729590025188,0.03388406,66838.0,66837.0,0.028]
[1729590025437,0.02288406,66838.0,66837.0,0.028]
[1729590025686,0.02788406,66838.0,66837.0,0.028]
[1729590025924,0.03988406,66838.0,66837.0,0.028]
[1729590026897,0.06332195,66838.0,66837.0,0.028]
[1729590027899,0.21293695,66838.0,66837.0,0.028]
[1729590028483,0.06332195,66838.0,66837.0,0.028]
[1729590028580,0.21293695,66838.0,66837.0,0.028]
[1729590028811,0.06332195,66838.0,66837.0,0.028]
[1729590029561,0.21293695,66838.0,66837.0,0.028]
[1729590029820,0.21293695,66838.0,66831.0,0.4048133]
[1729590029821,0.149623,66835.0,66834.0,0.005]
[1729590030056,0.16350706,66835.0,66834.0,0.023]